Cogmind - Beta 14 *** ADVENTURER MODE // 2024.09.02 @ 23:46:57 Player: Bert Result: Self-destructed Performance ------------- Evolutions (2) 1000 Regions Visited (3) 600 Robots Destroyed (31) 155 Value Destroyed (623) 623 Prototype IDs (5) 100 Alien Tech Used (0) 0 Bonus (0) 0 TOTAL SCORE: 2478 Bonus ------- None Cogmind --------- Core Integrity 453/550 Matter 300/300 Energy 100/100 System Corruption 0% Temperature Cool (0) Movement Flying (40) Location -8/Materials Parts ------- > --- POWER (1) -------- (None) > --- PROPULSION (4) --- Flight Unit > --- UTILITY (4) ------ Structural Scanner > --- WEAPON (2) ------- (None) > --- INVENTORY (5) ---- Light Ion Engine Airjet Small Storage Unit EM Shotgun Medium Laser Peak State ------------ > --- POWER ------------ Ion Engine > --- PROPULSION ------- Aluminum Leg Aluminum Leg Aluminum Leg > --- UTILITY ---------- Heat Sink Small Storage Unit Structural Scanner > --- WEAPON ----------- Small Laser Beam Rifle > --- INVENTORY -------- Ion Engine Light Ion Engine Medium Storage Unit Medium Laser Medium Laser [Rating: 10] Favorites ----------- Power Ion Engine Engine Ion Engine Propulsion Aluminum Leg Leg Aluminum Leg Wheel Compact Wheel Hover Unit Airjet Flight Unit Flight Unit Utility Structural Scanner Device Structural Scanner Storage Small Storage Unit Weapon Medium Laser Energy Gun Medium Laser Ballistic Gun Light Assault Rifle Build | -11 -10 -9 -8 ------- Run | Yrd Mat Mat Mat Slots Evolved 4 | . . 2 2 Power . | . . . . Propulsion 2 | . . 1 1 Utility 2 | . . 1 1 Weapon . | . . . . Parts Attached 22 | 5 3 13 1 Power 3 | 1 . 2 . Engine 3 | 1 . 2 . Core . | . . . . Reactor . | . . . . Propulsion 8 | 2 . 5 1 Treads . | . . . . Leg 3 | . . 3 . Wheel 2 | 2 . . . Hover 1 | . . . 1 Flight 2 | . . 2 . Utility 5 | 1 1 3 . Device 3 | . 1 2 . Storage 2 | 1 . 1 . Processor . | . . . . Hackware . | . . . . Protection . | . . . . Artifact . | . . . . Weapon 6 | 1 2 3 . Energy Gun 5 | 1 1 3 . Energy Cannon . | . . . . Ballistic Gun 1 | . 1 . . Ballistic Cannon . | . . . . Launcher . | . . . . Special Weapon . | . . . . Impact Weapon . | . . . . Slashing Weapon . | . . . . Piercing Weapon . | . . . . Special Melee Weapon . | . . . . Unidentified Prototypes . | . . . . Parts Lost 9 | . . 6 3 Power 1 | . . . 1 Propulsion 5 | . . 4 1 Utility . | . . . . Weapon 3 | . . 2 1 Highest Loss Streak 5 | . . 5 2 To Critical Strikes . | . . . . Average Slot Usage (%) 84 | . 90 90 40 Engine 11 | . 14 11 8 Leg 14 | . . 22 . Wheel 7 | . 28 2 . Flight 3 | . . 2 17 Device 15 | . 6 20 9 Storage 9 | . 14 9 . Energy Gun 18 | . 20 20 5 Ballistic Gun 1 | . 6 . . Peak Build Rating 10 | 5 7 10 8 Average Rating 7 | 4 6 8 4 On Entrance 4 | . 5 7 5 Naked Turns . | . . . . Heaviest Build 21 | 12 14 21 6 Greatest Support 30 | 26 26 30 8 Greatest Overweight (x) 6 | . . 6 . Average Overweight (x) . | . . . . Largest Inventory Capacity 10 | 8 8 10 5 Average Capacity 8 | 7 8 9 5 Most Carried 8 | 5 8 8 5 Average Carried 5 | 3 5 6 4 Final Capacity 8 | 8 8 5 5 Final Carried 8 | 5 8 5 5 Class Distribution -------------------- 88% | Mutant 11% | Scavenger-Mutant Dominant Class ---------------- Mutant | -10/Materials Mutant | -9/Materials Mutant | -8/Materials Resources | -11 -10 -9 -8 ----------- Run | Yrd Mat Mat Mat Matter Collected 409 | 191 98 120 . Remotely . | . . . . Salvage Created 909 | . 149 760 . Parts 52 | . 9 43 . Haulers Intercepted . | . . . . Recyclers Shooed 2 | . . 2 . Parts Field Recycled . | . . . . Retrieved Matter . | . . . . Parts Self-Destructed . | . . . . Prevented . | . . . . Kills | -11 -10 -9 -8 ------- Run | Yrd Mat Mat Mat Combat Hostiles Destroyed 25 | . 2 23 . Guns 23 | . 2 21 . Classes Destroyed 5 | . 2 3 . Recycler 2 | . . 2 . Watcher 4 | . 2 2 . Swarmer 15 | . . 15 . Grunt 6 | . 2 4 . Sentry 4 | . . 4 . Best Kill Streak 9 | . 1 9 . Combat Bots Only 7 | . 1 7 . Max Kills in Single Turn 1 | . 1 1 . Gunslinging . | . . . . Exploded . | . . . . Melee . | . . . . Uniques/NPCs Destroyed . | . . . . Combat | -11 -10 -9 -8 -------- Run | Yrd Mat Mat Mat Hostile Shots Fired 218 | . 13 149 56 Missed 80 | . 2 46 32 Damage Taken 1100 | . 111 753 236 Core 242 | . 19 126 97 Absorbed by Shields . | . . . . Ignored by Resistances 347 | . 32 243 72 Core Remaining (%) 86 | 100 92 68 . Volleys Fired 93 | . 16 74 3 Largest 2 | . 2 2 1 Hottest 100 | . 90 100 50 Shots Fired 170 | . 32 135 3 Gun 170 | . 32 135 3 Cannon . | . . . . Launcher . | . . . . Special . | . . . . Kinetic 13 | . 13 . . Thermal 157 | . 19 135 3 Explosive . | . . . . Electromagnetic . | . . . . Robot Hit Streak 14 | . 9 14 4 Robot Miss Streak 2 | . 1 2 . Penetration Max . | . . . . Secondary Targets 3 | . 1 2 . Max Gunslinging Chain 1 | . 1 1 . Shots Hit Robots 120 | . 26 91 3 Core Hits 45 | . 8 36 1 Critical Kills . | . . . . Critical Parts Destroyed . | . . . . Critical Strikes 10 | . 1 8 1 Burn 10 | . 1 8 1 Melee Attacks . | . . . . Impact . | . . . . Slashing . | . . . . Piercing . | . . . . Sneak Attacks . | . . . . Combat Hostiles . | . . . . Follow-up Attacks . | . . . . Damage Inflicted 1466 | . 283 1144 39 Guns 1455 | . 278 1138 39 Cannons . | . . . . Explosions . | . . . . Melee . | . . . . Ramming 11 | . 5 6 . Kinetic 95 | . 95 . . Thermal 1360 | . 183 1138 39 Explosive . | . . . . Electromagnetic . | . . . . Impact . | . . . . Slashing . | . . . . Piercing . | . . . . Highest Corruption . | . . . . Average Corruption . | . . . . Corruption Purged . | . . . . Corruption Blocked . | . . . . Overload Shots . | . . . . Overflow Damage . | . . . . Projectiles . | . . . . Explosions . | . . . . Melee . | . . . . Knockbacks . | . . . . Impact . | . . . . Kinetic . | . . . . Secondary . | . . . . Self-Inflicted Damage 2 | . 2 . . Shots . | . . . . Rammed 1 | . 1 . . Targets Rammed 2 | . 1 1 . Kicked 1 | . . 1 . Crushed . | . . . . Highest Temperature 144 | . 144 142 24 Average Temperature 39 | . 59 32 16 Received Heat Transfer 339 | . 84 156 99 Siege Activations . | . . . . Robots Corrupted . | . . . . Combat Hostiles . | . . . . Parts Fried . | . . . . Impact Corruptions . | . . . . Robots Melted 2 | . . 2 . Combat Hostiles 2 | . . 2 . Parts Melted 11 | . . 11 . Heat Transferred 4402 | . 617 3600 185 Parts Sabotaged . | . . . . Parts Stolen . | . . . . Parts Stripped . | . . . . Power Chain Reactions . | . . . . Alert | -11 -10 -9 -8 ------- Run | Yrd Mat Mat Mat Peak Influence 389 | . 154 354 389 Initial 122 | . . 55 122 Average 139 | . 86 191 214 Maximum Alert Level 1 | . . 1 1 Low Security (%) 72 | 100 100 58 48 Level 1 27 | . . 41 51 Level 2 . | . . . . Level 3 . | . . . . Level 4 . | . . . . Level 5 . | . . . . High Security . | . . . . Max Security . | . . . . Squads Dispatched 2 | . . 1 1 Investigation 1 | . . 1 . Extermination . | . . . . Reinforcement 1 | . . . 1 Assault . | . . . . Garrison . | . . . . Intercept . | . . . . Searches Triggered . | . . . . Construction Impeded . | . . . . Haulers Reinforced . | . . . . Active Scanning Responses . | . . . . Cargo Convoy Interrupts . | . . . . Stealth | -11 -10 -9 -8 --------- Run | Yrd Mat Mat Mat Distress Signals 2 | . . 1 1 Communications Jammed . | . . . . Distress Signals . | . . . . Times Spotted 63 | . 6 37 20 Peak Tracking Total 12 | . 4 6 12 Tactical Retreats 8 | . 1 3 4 Traps | -11 -10 -9 -8 ------- Run | Yrd Mat Mat Mat Traps Triggered 1 | . . 1 . Indirectly . | . . . . Trap Hack Attempts . | . . . . Triggered . | . . . . Disarmed . | . . . . Reprogrammed . | . . . . Reused . | . . . . Traps Extracted . | . . . . Installed . | . . . . Triggered . | . . . . Machines | -11 -10 -9 -8 ---------- Run | Yrd Mat Mat Mat Machines Disabled . | . . . . Max in Single Turn . | . . . . Machines Repaired . | . . . . Machines Dismantled . | . . . . Machines Sabotaged . | . . . . Overloaded Fab Kills . | . . . . Hacking | -11 -10 -9 -8 --------- Run | Yrd Mat Mat Mat Machines Accessed 5 | . 3 1 1 Terminals 5 | . 3 1 1 Fabricators . | . . . . Repair Stations . | . . . . Recycling Units . | . . . . Scanalyzers . | . . . . Garrison Access . | . . . . Total Hacks 21 | . 14 4 3 Successful 11 | . 8 2 1 Failed 10 | . 6 2 2 Catastrophic 1 | . . 1 . Database Lockouts . | . . . . Manual 7 | . 4 3 . Terminals 21 | . 14 4 3 Fabricators . | . . . . Repair Stations . | . . . . Recycling Units . | . . . . Scanalyzers . | . . . . Garrison Access . | . . . . Terminal Hacks 11 | . 8 2 1 Record 1 | . 1 . . Prototype ID Bank 2 | . 1 . 1 Alert Level 1 | . . 1 . Unreport Threat 1 | . . 1 . Locate Traps 2 | . 2 . . Maintenance Status 1 | . 1 . . Hauler Manifests 1 | . 1 . . Registered Components 1 | . 1 . . Zone Layout 1 | . 1 . . Fabricator Hacks . | . . . . Repair Station Hacks . | . . . . Recycling Unit Hacks . | . . . . Scanalyzer . | . . . . Garrison Access Hacks . | . . . . Unauthorized Hacks . | . . . . Terminals . | . . . . Fabricators . | . . . . Repair Stations . | . . . . Recycling Units . | . . . . Scanalyzers . | . . . . Garrison Access . | . . . . Data Cores Recovered . | . . . . Used . | . . . . Hacking Detections 4 | . 2 1 1 Full Trace Events . | . . . . Feedback Events . | . . . . Feedback Blocked . | . . . . Robot Schematics Acquired . | . . . . Robots Built . | . . . . Authchips . | . . . . Time . | . . . . Total Robot Build Rating . | . . . . Part Schematics Acquired . | . . . . Parts Built . | . . . . Authchips . | . . . . Time . | . . . . Total Part Build Rating . | . . . . Parts Repaired . | . . . . Time . | . . . . Parts Recycled . | . . . . Recycled Matter . | . . . . Retrieved Matter . | . . . . Retrieved Components . | . . . . Parts Scanalyzed . | . . . . Part Schematics Acquired . | . . . . Parts Damaged . | . . . . Bothacking | -11 -10 -9 -8 ------------ Run | Yrd Mat Mat Mat Used RIF Installer . | . . . . Robots Hacked . | . . . . Non-combat . | . . . . Combat . | . . . . Robot Hacks Applied . | . . . . Relay Couplers Released . | . . . . Fabnet Peak Effective % . | . . . . Robots Rewired . | . . . . Allies Hacked . | . . . . Hacks Repelled . | . . . . Allies | -11 -10 -9 -8 -------- Run | Yrd Mat Mat Mat Total Allies . | . . . . Largest Group . | . . . . Highest-Rated Group . | . . . . Highest-Rated Ally . | . . . . Total Orders . | . . . . Ally Attacks . | . . . . Total Damage . | . . . . Kills . | . . . . Allies Corrupted . | . . . . Allies Melted . | . . . . Intel | -11 -10 -9 -8 ------- Run | Yrd Mat Mat Mat Robot Analysis Total . | . . . . Derelict Logs Recovered . | . . . . Drone Launches . | . . . . Drone Recoveries . | . . . . Exploration | -11 -10 -9 -8 ------------- Run | Yrd Mat Mat Mat Turns Passed 1157 | 211 216 606 124 Spaces Moved 950 | 215 149 290 296 Core 22 | 16 . 6 . Treads . | . . . . Legs 201 | . . 201 . Wheels 379 | 199 149 31 . Hover . | . . . . Flight 348 | . . 52 296 Fastest Speed 37 | 50 90 37 37 Average Speed 78 | 87 90 106 37 Slowest Speed 350 | 90 90 350 40 Overloaded Moves . | . . . . Propulsion Burnouts . | . . . . Robots Hopped 2 | . . . 2 Cave-ins Triggered . | . . . . Exploration Rate (%) 26 | 7 34 20 44 Regions Visited 3 Branch Regions . Pre-discovered Areas . | . . . . Known Exits Taken . | . . . . Unknown Exits Taken 3 | 1 1 1 . Scrap Searched . | . . . . Spaces Dug . | . . . . Terrain Destroyed . | . . . . Melee . | . . . . Projectile . | . . . . AOE . | . . . . Terrain Rammed . | . . . . Walls Destroyed . | . . . . Machines Disabled . | . . . . Actions | -11 -10 -9 -8 --------- Run | Yrd Mat Mat Mat Total 1199 | 238 202 454 305 Wait 90 | 9 26 53 2 Move 943 | 214 148 289 292 Hop 2 | . . . 2 Pick Up 31 | 10 6 13 2 Fast Attach . | . . . . Attach 17 | 5 3 8 1 Detach 3 | . 1 1 1 Swap 5 | . . 5 . Drop 13 | . 1 10 2 Fire 93 | . 16 74 3 Melee . | . . . . Ram 1 | . 1 . . Kick 1 | . . 1 . Crush . | . . . . Escape Stasis . | . . . . Rewire . | . . . . Trap . | . . . . Miscellaneous . | . . . . Route ------- -11/Scrapyard -10/Materials -9/Materials -8/Materials History --------- Turn | Location | Event 9 | -11/Scrapyard | Discovered new exit (range 16) 212 | -11/Scrapyard | Entered Materials 314 | -10/Materials | Build established: Mutant 411 | -10/Materials | Discovered new exit (range 11) 428 | -10/Materials | Entered another Materials area 428 | -9/Materials | Evolved 2 slots: Propulsion x1, Utility x1 856 | -9/Materials | Destroyed 7 combat bots 966 | -9/Materials | Lost 5 parts (3n2w) 1003 | -9/Materials | Discovered new exit (range 15) 1034 | -9/Materials | Entered another Materials area 1034 | -8/Materials | Evolved 2 slots: Propulsion x1, Utility x1 1158 | -8/Materials | Self-destructed Last Messages --------------- Downloading prototype IDs... Prc. Grenade Launcher Adv. Beam Rifle Imp. Cesium-ion Thruster 01082_ K-01 Serf cleans the Terminal. 01088_ G-47 Trooper suffers critical hit (Burn). 01094_ Penetrated by Slug. 01097_ Slug penetrates Wall. 01101_ K-01 Serf collects debris. 01104_ Med. Laser destroyed. 01109_ K-01 Serf collects debris. 01129_ W-25 Informer distress signal alerts nearby ally. 01135_ K-01 Serf collects debris. 01140_ O-16 Technician: "IFF HANDSHAKE FAILED. SECURING TERMINAL." 01141_ Flight Unit destroyed. 01142_ Lgt. Ion Engine destroyed. 01149_ ALERT: Hostiles spotted, dispatching reinforcements to Terminal M003. Map ----- +----------------------------------------------------+ | ?????????????????????????????????????????????????? | | ?????????????????????????????????????????????????? | | ?????????????????????????????????????????????????? | | ?????????????????????????????????????????????????? | | ?????????????????????????????????????????????????? | | ?????????????????????????????????????????????????? | | ?????????????????????????????????????????????????? | | ?????????????????????????????????????????????????? | | ?????????????????????????????????????????????????? | | ?????????????????????????????????????????????????? | | ?????????????????????????????????????????????????? | | ?????????????????????????????????????????????????? | | ?????????????????????????????????????????????????? | | ?????????????????????????????????????????????????? | | ?????????????????????????????????????????????????? | | ?????????????????????????????????????????????????? | | ?????????????????????????????????????????????????? | | ?????????????????????????????????????????????? # # | | ?????????????????????????????????????????????? # # | | ???????????????????????????????????? ###### ?? + | | ???????????????????????????????????? ###### ?? # | | ???????????????????????????????????? # # ?? # | | ??????????????????? #######???????? # # # | | ???????????????????#########???????? # ##+### | | ???????????????????##! / ##???????? # ## ### | | ???????????????????## @##???????? # ## ### | | ??????????????????? # " ####### ?? # ## ### | | ??????????????????? # """ ####### ?? + | | ??????????????????? # """ # # # | | ??????????????????? # """ # ###### | | ??????????????????? # "" + | | ??????????????????? # """ # ] ###### | | ??????????????????? # "" # ###### | | ???????????????????## """ ###+####??## | | ???????????????????## " # #??#####+#### | | ???????????????????## !# ????????### # | | ???????????????????######## ???????????????? # | | ??????????????????? ####### ???????????????? + | | ???????????????????????????????????????????? # | | ???????????????????????????????????????????? ##### | | ???????????????????????????????????????????? ### | | ?????????????????????????????????????????????????? | | ?????????????????????????????????????????????????? | | ?????????????????????????????????????????????????? | | ?????????????????????????????????????????????????? | | ?????????????????????????????????????????????????? | | ?????????????????????????????????????????????????? | | ?????????????????????????????????????????????????? | | ?????????????????????????????????????????????????? | | ?????????????????????????????????????????????????? | +----------------------------------------------------+ Best States ------------- Heat Dissipation 38 Energy Generation 10 Energy Capacity 250 Matter Stores 300 Matter Capacity 300 Sight Range 16 Terrain Scan Density 10 Resistance: KI 20 Resistance: TH 20 Resistance: EX 20 Resistance: EM 20 Resistance: I 20 Resistance: S 20 Resistance: P 20 Evasion (%) 62 Offensive Hacking 10 Item Schematics ----------------- None Robot Schematics ------------------ None Fabricated ------------ Nothing Alien Tech Used ----------------- None Achievements -------------- None Challenges ------------ None Game ------ Seed VampiricCompositeMultitool Manual? 0 Play Time 00:29:09 Cumulative 33.6 hours Start 2024.09.02 @ 23:15:14 End 2024.09.02 @ 23:46:57 Sessions 2 Manual Loads 0 Difficulty Adventurer Special Mode None Game No. 73 Rogue 0 Adventurer 73 Explorer 0 Win Type - Total 0 Types 0/0/0/0/0/0/0/0/0 Lore% 22 Gallery% 36 Achievement% 28 Wizard Run 0 Options --------- Layout 2 ASCII 0 Keyboard 1 Movement Numpad Keybinds 0 Fullscreen 1 Font 24/Smallcaps Map View 50x44 Zoom Use 10% Tactical HUD 1 Map Filters NONE Filters NONE Steam 1 RUN: b80f3b7e-da06-4f08-997d-b0accfb5df99